{"text_format":"1","workbook":"xlsx","n_sheets":10,"sheets":["Portada","Alfabeto","Palabras","MayusMinus","Nombres","Sonidos","Completa","Traduccion","Estadisticas","Configuracion"],"not_rendered":{"charts":1,"images":19,"macros":1,"external_links":0,"defined_names":25,"comments":0,"pivot_tables":0},"unopened":[],"bounds":{"document_bytes":16777216,"sheet_cells":100000,"rows_first":2000,"rows_last":500,"rows_between":2000,"halvings":0,"cell_chars":16384,"cell_head_chars":4096},"cells_cut":0,"cells_raw":0,"read":"whole","date_system":"1900"}

{"sheet":"Portada","index":0,"n_rows":150,"n_cols":8,"rows_kept":150,"cut":false,"hidden":false,"merged":[[131,1,131,10],[54,1,54,10],[61,1,61,10],[85,1,85,10],[97,1,97,10],[106,1,108,10],[56,1,60,10],[45,1,45,10],[47,1,47,4],[47,7,47,10],[49,7,52,10],[49,1,52,4],[26,7,29,10],[31,1,31,4],[31,7,31,10],[33,1,36,4],[33,7,36,10],[149,1,149,10],[1,1,3,10],[4,1,5,5],[7,1,7,10],[9,1,10,9],[9,10,10,10],[22,1,22,10],[4,6,5,10],[24,1,24,4],[24,7,24,10],[18,1,20,10],[12,1,12,10],[14,1,16,10],[38,1,38,10],[40,1,43,10],[26,1,29,4]]}
[]
[null,"Alfabeto Griego\nJorge García Samartín"]
[]
[]
[null,"www.gsamartin.es",null,null,null,null,"jorge@gsamartin.es"]
[]
[]
[null,"Navegación"]
[]
[null,"Para nagegar a lo largo de todo el documento, utliza los comandos situados arriba, en la cinta Ribbon. Más abajo puedes encontrar, además, links directos a todos los tests."]
[]
[]
[null,"Tests"]
[]
[null,"Este documento te va a permitir aprenderte el alfabeto griego en muy poco tiempo y de forma dinámica y divertida. Es un hecho indudable que, jugando con el ordenador, retenemos mejor las cosas y éste Excel esta diseñado para tal fin, así que…¡ya verás como te sorprenderán los resultados!"]
[]
[]
[]
[null,"A diferencia de otros métodos, aquí verás 5 test, con diferentes niveles de dificultad para que lo domines todo (mayúsculas, mnúsculas, nombres, fonología…) e incluso ¡seas capaz de leer! Da por seguro que ¡no te aburrirás!"]
[]
[]
[]
[null,"Tests (click en el título para acceder):"]
[]
[null,"Test de Mayúsculas y Minúsculas",null,null,null,null,null,"Test de Nombres de las Letras"]
[]
[null,"Rellena los huecos con la letra correspondiente (mayúscula o minúscula). Para hacerlo, puedes entre los caracteres de la lista o activar el teclado Griego Politónico",null,null,null,null,null,"Rellena los huecos con el nombre de la letra que corresponda. Ten cuidado, que las letras pueden ser tanto minúsculas como mayúsculas."]
[]
[]
[]
[]
[null,"Test de Sonidos",null,null,null,null,null,"Test Completo (Nombre, Grafía, Sonido)"]
[]
[null,"Rellena los huecos con el sonido de la letra que corresponda. Ten cuidado, que las letras pueden ser tanto minúsculas como mayúsculas y los sonidos deben ir entre corchetes.",null,null,null,null,null,"Rellena los huecos con la mayúscula, la minúscula y el sonido correspondiente al nombre de la letra dado. Cada respuesta correcta puntúa 0.25 en el caso de las letras y 0.5, en el del sonido."]
[]
[]
[]
[]
[null,"Test de Traducción"]
[]
[null,"Traduce los nombres de dioses, héroes y personalides destacadas de la Antigua Grecia. El sistema dispone de casi 90 nombres distintos, para que no se repitan y puedas practicar durante mucho tiempo. Deberás tener en cuenta grafías especiales, variación fonética, tildes... Sin embargo, como la traducción al español puede no ser exacta  tambien puedes traducir letra por letra. "]
[]
[]
[]
[]
[null,"Recursos"]
[]
[null,"Alfabeto",null,null,null,null,null,"Estadísticas"]
[]
[null,"En esta hoja encontrarás los nombres de todas las letras, su grafía mayúscula y minúscula y su pronuncación con bastante detalle. ¡Lo más esencial de este Excel! ",null,null,null,null,null,"Aquí podrás ver las Estadísticas de cada test, para que puedas comprobar toda tu progresión) a lo largo del tiempo y compararla, gracias a los gráficos que se ofrecen."]
[]
[]
[]
[]
[null,"Activar el teclado Griego Politónico"]
[]
[null,"Como comprobarás, no es fácil escribir en griego con un teclado español. Aunque puedes usar fuentes como Symbol, no dispondrás de todos los caracteres o las letras no se verán como más te gusten. Instalar programas es laborioso y ocupan espacio, pero muy poca gente sabe que el propio Windows te permite hacerle en muy pocos pasos. Aunque no es obligatorio para el uso de este Excel, te ayudará tanto aquí como en tus trabajos en griego."]
[]
[]
[]
[]
[null,"Vete a Inicio > Panel de Control > Idioma."]
[]
[]
[]
[]
[]
[]
[]
[]
[]
[]
[]
[]
[]
[]
[]
[]
[]
[]
[]
[]
[]
[]
[]
[null,"Una vez allí, da en Agregar un idioma, y en la lista, elige el Griego"]
[]
[]
[]
[]
[]
[]
[]
[]
[]
[]
[]
[null,"A la derecha, haz click en Opciones y en la nueva página, abajo, en Agregue un métdo de entrada."]
[]
[]
[]
[]
[]
[]
[]
[]
[null,"Solo te quedará elegir el Griego Politónico (el más compatible con el griego clásico) y borrar el otro dando a Quitar  en la pantalla que aparecerá. Para alternar entre los distintos alfabetos, eligelos en la barra de herramientas abajo a la derecha o con Windows+ Espacio."]
[]
[]
[]
[]
[]
[]
[]
[]
[]
[]
[]
[]
[]
[]
[]
[]
[]
[]
[]
[]
[]
[]
[]
[]
[null,"Teclado"]
[]
[]
[]
[]
[]
[]
[]
[]
[]
[]
[]
[]
[]
[]
[]
[]
[]
[null,"Ayuda para tildes y espíritus"]

{"sheet":"Alfabeto","index":1,"n_rows":28,"n_cols":16,"rows_kept":28,"cut":false,"hidden":false,"merged":[]}
[null,"Mayúscula","Minúscula","Nombre","Sonido","Comentarios",null,"MayusMinus",null,"Nombres",null,"Sonidos",null,"Completa"]
[1,"Α","α","Alfa","[a]",null,null,{"$f":"COUNTIF(MayusMinus!$I$3:$I$15,A2)","v":0},{"$f":"IF(H2>1,100,IF(H2=1,1,0))","v":0},{"$f":"COUNTIF(Nombres!$I$3:$I$12,A2)","v":3},{"$f":"IF(J2>1,100,IF(J2=1,1,0))","v":100},{"$f":"COUNTIF(Sonidos!$I$3:$I$12,A2)","v":0},{"$f":"IF(L2>1,100,IF(L2=1,1,0))","v":0},{"$f":"COUNTIF(Completa!$M$3:$M$12,A2)","v":0},{"$f":"IF(N2>1,100,IF(N2=1,1,0))","v":0}]
[2,"Β","β","Beta","[b]",null,null,{"$f":"COUNTIF(MayusMinus!$I$3:$I$15,A3)","v":1},{"$f":"IF(H3>1,100,IF(H3=1,1,0))","v":1},{"$f":"COUNTIF(Nombres!$I$3:$I$12,A3)","v":0},{"$f":"IF(J3>1,100,IF(J3=1,1,0))","v":0},{"$f":"COUNTIF(Sonidos!$I$3:$I$12,A3)","v":2},{"$f":"IF(L3>1,100,IF(L3=1,1,0))","v":100},{"$f":"COUNTIF(Completa!$M$3:$M$12,A3)","v":1},{"$f":"IF(N3>1,100,IF(N3=1,1,0))","v":1}]
[3,"Γ","γ","Gamma","[g]","G de gato",null,{"$f":"COUNTIF(MayusMinus!$I$3:$I$15,A4)","v":2},100,{"$f":"COUNTIF(Nombres!$I$3:$I$12,A4)","v":0},0,{"$f":"COUNTIF(Sonidos!$I$3:$I$12,A4)","v":0},0,{"$f":"COUNTIF(Completa!$M$3:$M$12,A4)","v":0},0,"Lista de Tests:"]
[4,"Δ","δ","Delta","[d]",null,null,{"$f":"COUNTIF(MayusMinus!$I$3:$I$15,A5)","v":1},{"$f":"IF(H5>1,100,IF(H5=1,1,0))","v":1},{"$f":"COUNTIF(Nombres!$I$3:$I$12,A5)","v":0},0,{"$f":"COUNTIF(Sonidos!$I$3:$I$12,A5)","v":0},0,{"$f":"COUNTIF(Completa!$M$3:$M$12,A5)","v":0},0,"Mayúsculas y Minúsculas"]
[5,"Ε","ε","Epsilon","[e]",null,null,{"$f":"COUNTIF(MayusMinus!$I$3:$I$15,A6)","v":0},0,{"$f":"COUNTIF(Nombres!$I$3:$I$12,A6)","v":1},1,{"$f":"COUNTIF(Sonidos!$I$3:$I$12,A6)","v":0},0,{"$f":"COUNTIF(Completa!$M$3:$M$12,A6)","v":1},1,"Nombres de las Letras"]
[6,"Ζ","ζ","Dseta","[dz]","Z francesa",null,{"$f":"COUNTIF(MayusMinus!$I$3:$I$15,A7)","v":0},0,{"$f":"COUNTIF(Nombres!$I$3:$I$12,A7)","v":0},0,{"$f":"COUNTIF(Sonidos!$I$3:$I$12,A7)","v":0},0,{"$f":"COUNTIF(Completa!$M$3:$M$12,A7)","v":0},0,"Sonidos"]
[7,"Η","η","Eta","[e]",null,null,{"$f":"COUNTIF(MayusMinus!$I$3:$I$15,A8)","v":0},0,{"$f":"COUNTIF(Nombres!$I$3:$I$12,A8)","v":1},1,{"$f":"COUNTIF(Sonidos!$I$3:$I$12,A8)","v":1},1,{"$f":"COUNTIF(Completa!$M$3:$M$12,A8)","v":0},0,"Completo"]
[8,"Θ","θ","Theta","[th]",null,null,{"$f":"COUNTIF(MayusMinus!$I$3:$I$15,A9)","v":0},0,{"$f":"COUNTIF(Nombres!$I$3:$I$12,A9)","v":0},0,{"$f":"COUNTIF(Sonidos!$I$3:$I$12,A9)","v":0},0,{"$f":"COUNTIF(Completa!$M$3:$M$12,A9)","v":0},0,"Traducción"]
[9,"Ι","ι","Iota","[i]",null,null,{"$f":"COUNTIF(MayusMinus!$I$3:$I$15,A10)","v":0},0,{"$f":"COUNTIF(Nombres!$I$3:$I$12,A10)","v":0},0,{"$f":"COUNTIF(Sonidos!$I$3:$I$12,A10)","v":0},0,{"$f":"COUNTIF(Completa!$M$3:$M$12,A10)","v":0},0]
[10,"Κ","κ","Kappa","[k]",null,null,{"$f":"COUNTIF(MayusMinus!$I$3:$I$15,A11)","v":1},1,{"$f":"COUNTIF(Nombres!$I$3:$I$12,A11)","v":0},0,{"$f":"COUNTIF(Sonidos!$I$3:$I$12,A11)","v":0},0,{"$f":"COUNTIF(Completa!$M$3:$M$12,A11)","v":1},1]
[11,"Λ","λ","Lamda","[l]",null,null,{"$f":"COUNTIF(MayusMinus!$I$3:$I$15,A12)","v":1},1,{"$f":"COUNTIF(Nombres!$I$3:$I$12,A12)","v":0},0,{"$f":"COUNTIF(Sonidos!$I$3:$I$12,A12)","v":0},0,{"$f":"COUNTIF(Completa!$M$3:$M$12,A12)","v":1},1]
[12,"Μ","μ","Mi","[m]",null,null,{"$f":"COUNTIF(MayusMinus!$I$3:$I$15,A13)","v":0},0,{"$f":"COUNTIF(Nombres!$I$3:$I$12,A13)","v":1},1,{"$f":"COUNTIF(Sonidos!$I$3:$I$12,A13)","v":1},1,{"$f":"COUNTIF(Completa!$M$3:$M$12,A13)","v":1},1]
[13,"Ν","ν","Ni","[n]",null,null,{"$f":"COUNTIF(MayusMinus!$I$3:$I$15,A14)","v":0},0,{"$f":"COUNTIF(Nombres!$I$3:$I$12,A14)","v":0},0,{"$f":"COUNTIF(Sonidos!$I$3:$I$12,A14)","v":0},0,{"$f":"COUNTIF(Completa!$M$3:$M$12,A14)","v":1},1]
[14,"Ξ","ξ","Xi","[ks]",null,null,{"$f":"COUNTIF(MayusMinus!$I$3:$I$15,A15)","v":0},0,{"$f":"COUNTIF(Nombres!$I$3:$I$12,A15)","v":1},1,{"$f":"COUNTIF(Sonidos!$I$3:$I$12,A15)","v":0},0,{"$f":"COUNTIF(Completa!$M$3:$M$12,A15)","v":0},0]
[15,"Ο","ο","Omicron","[o]","O corta",null,{"$f":"COUNTIF(MayusMinus!$I$3:$I$15,A16)","v":1},1,{"$f":"COUNTIF(Nombres!$I$3:$I$12,A16)","v":0},0,{"$f":"COUNTIF(Sonidos!$I$3:$I$12,A16)","v":0},0,{"$f":"COUNTIF(Completa!$M$3:$M$12,A16)","v":1},1]
[16,"Π","π","Pi","[p]",null,null,{"$f":"COUNTIF(MayusMinus!$I$3:$I$15,A17)","v":0},0,{"$f":"COUNTIF(Nombres!$I$3:$I$12,A17)","v":0},0,{"$f":"COUNTIF(Sonidos!$I$3:$I$12,A17)","v":0},0,{"$f":"COUNTIF(Completa!$M$3:$M$12,A17)","v":0},0]
[17,"Ρ","ρ","Ro","[r]",null,null,{"$f":"COUNTIF(MayusMinus!$I$3:$I$15,A18)","v":1},1,{"$f":"COUNTIF(Nombres!$I$3:$I$12,A18)","v":0},0,{"$f":"COUNTIF(Sonidos!$I$3:$I$12,A18)","v":2},100,{"$f":"COUNTIF(Completa!$M$3:$M$12,A18)","v":1},1]
[18,"Σ","σ","Sigma","[s]","Nota 1",null,{"$f":"COUNTIF(MayusMinus!$I$3:$I$15,A19)","v":0},0,{"$f":"COUNTIF(Nombres!$I$3:$I$12,A19)","v":0},0,{"$f":"COUNTIF(Sonidos!$I$3:$I$12,A19)","v":1},1,{"$f":"COUNTIF(Completa!$M$3:$M$12,A19)","v":0},0]
[19,"Τ","τ","Tau","[t]",null,null,{"$f":"COUNTIF(MayusMinus!$I$3:$I$15,A20)","v":0},0,{"$f":"COUNTIF(Nombres!$I$3:$I$12,A20)","v":0},0,{"$f":"COUNTIF(Sonidos!$I$3:$I$12,A20)","v":0},0,{"$f":"COUNTIF(Completa!$M$3:$M$12,A20)","v":2},100]
[20,"Υ","υ","Ypsilon","[u]","U francesa",null,{"$f":"COUNTIF(MayusMinus!$I$3:$I$15,A21)","v":1},1,{"$f":"COUNTIF(Nombres!$I$3:$I$12,A21)","v":1},1,{"$f":"COUNTIF(Sonidos!$I$3:$I$12,A21)","v":1},1,{"$f":"COUNTIF(Completa!$M$3:$M$12,A21)","v":0},0]
[21,"Φ","φ","Phi","[f]",null,null,{"$f":"COUNTIF(MayusMinus!$I$3:$I$15,A22)","v":1},1,{"$f":"COUNTIF(Nombres!$I$3:$I$12,A22)","v":0},0,{"$f":"COUNTIF(Sonidos!$I$3:$I$12,A22)","v":1},1,{"$f":"COUNTIF(Completa!$M$3:$M$12,A22)","v":0},0]
[22,"Χ","χ","Ji","[x]","Nota 2",null,{"$f":"COUNTIF(MayusMinus!$I$3:$I$15,A23)","v":0},0,{"$f":"COUNTIF(Nombres!$I$3:$I$12,A23)","v":1},1,{"$f":"COUNTIF(Sonidos!$I$3:$I$12,A23)","v":0},0,{"$f":"COUNTIF(Completa!$M$3:$M$12,A23)","v":0},0]
[23,"Ψ","ψ","Psi","[ps]",null,null,{"$f":"COUNTIF(MayusMinus!$I$3:$I$15,A24)","v":0},0,{"$f":"COUNTIF(Nombres!$I$3:$I$12,A24)","v":0},0,{"$f":"COUNTIF(Sonidos!$I$3:$I$12,A24)","v":0},0,{"$f":"COUNTIF(Completa!$M$3:$M$12,A24)","v":0},0]
[24,"Ω","ω","Omega","[o]","O larga",null,{"$f":"COUNTIF(MayusMinus!$I$3:$I$15,A25)","v":0},0,{"$f":"COUNTIF(Nombres!$I$3:$I$12,A25)","v":1},1,{"$f":"COUNTIF(Sonidos!$I$3:$I$12,A25)","v":1},1,{"$f":"COUNTIF(Completa!$M$3:$M$12,A25)","v":0},0]
[null,null,null,null,null,null,null,null,{"$f":"SUM(I2:I25)","v":108},null,{"$f":"SUM(K2:K25)","v":107},null,{"$f":"SUM(M2:M25)","v":206},null,{"$f":"SUM(O2:O25)","v":108}]
[null,"Nota 1:","Al final de las palabras, se usa ς en lugar de σ."]
[null,"Nota2:","Se transcribe como \"q\" aunque puede ser una \"j\""]

{"sheet":"Palabras","index":2,"n_rows":89,"n_cols":8,"rows_kept":89,"cut":false,"hidden":true,"merged":[]}
["Numeros","Griego","Español","Traducción Literal",null,"Repite"]
[1,"Ζευς","Zeus","Zeus",null,{"$f":"COUNTIF(Traduccion!$I$3:$I$12,A2)","v":0},{"$f":"IF(F2>1,100,IF(F2=1,1,0))","v":0},{"$f":"SUM(G2:G61)","v":6}]
[2,"Ἠρα","Hera","Hra",null,{"$f":"COUNTIF(Traduccion!$I$3:$I$12,A3)","v":0},{"$f":"IF(F3>1,100,IF(F3=1,1,0))","v":0},{"$f":"MAX(A:A)","v":88}]
[3,"Ποσειδὠνας","Poseidón","Poseidónas",null,{"$f":"COUNTIF(Traduccion!$I$3:$I$12,A4)","v":0},0]
[4,"Δἠμητρα","Démeter","Démetra",null,{"$f":"COUNTIF(Traduccion!$I$3:$I$12,A5)","v":0},0]
[5,"Εστἰα","Hestia","Estía",null,{"$f":"COUNTIF(Traduccion!$I$3:$I$12,A6)","v":0},0]
[6,"Αφποδἰτη","Afrodita","Afrodite",null,{"$f":"COUNTIF(Traduccion!$I$3:$I$12,A7)","v":0},0]
[7,"Απὀλλων","Apolo","Apóllon",null,{"$f":"COUNTIF(Traduccion!$I$3:$I$12,A8)","v":0},0]
[8,"Ἀπης","Ares","Ares",null,{"$f":"COUNTIF(Traduccion!$I$3:$I$12,A9)","v":0},0]
[9,"Ἀρτεμις","Artemisa","Artemis",null,{"$f":"COUNTIF(Traduccion!$I$3:$I$12,A10)","v":0},0]
[10,"Αθηνἀ","Atenea","Athená",null,{"$f":"COUNTIF(Traduccion!$I$3:$I$12,A11)","v":0},0]
[11,"Ἠφαιστος","Hefesto","Hfaistos",null,{"$f":"COUNTIF(Traduccion!$I$3:$I$12,A12)","v":0},0]
[12,"Ερμἠς","Hermes","Ermés",null,{"$f":"COUNTIF(Traduccion!$I$3:$I$12,A13)","v":0},0]
[13,"Ἀδης","Hades","Ades",null,{"$f":"COUNTIF(Traduccion!$I$3:$I$12,A14)","v":0},0]
[14,"Διὀνυσος","Dionisio","Diónusos",null,{"$f":"COUNTIF(Traduccion!$I$3:$I$12,A15)","v":0},0]
[15,"Εκἀτη","Hécate","Ekáte",null,{"$f":"COUNTIF(Traduccion!$I$3:$I$12,A16)","v":0},0]
[16,"Ἐρως","Eros","Eros",null,{"$f":"COUNTIF(Traduccion!$I$3:$I$12,A17)","v":1},1]
[17,"Ἠβη","Hebe","Hebe",null,{"$f":"COUNTIF(Traduccion!$I$3:$I$12,A18)","v":0},0]
[18,"Ιασὠ","Yaso","Iasó",null,{"$f":"COUNTIF(Traduccion!$I$3:$I$12,A19)","v":0},0]
[19,"Παν","Pan","Pan",null,{"$f":"COUNTIF(Traduccion!$I$3:$I$12,A20)","v":0},0]
[20,"Περσεφὀνη","Perséfone","Persefóne",null,{"$f":"COUNTIF(Traduccion!$I$3:$I$12,A21)","v":0},0]
[21,"Αἰολος","Eolo","Aíolos",null,{"$f":"COUNTIF(Traduccion!$I$3:$I$12,A22)","v":0},0]
[22,"Θἐμις","Temis","Témis",null,{"$f":"COUNTIF(Traduccion!$I$3:$I$12,A23)","v":0},0]
[23,"Ἀσκληπιὀς","Asclepio","Aslepiós",null,{"$f":"COUNTIF(Traduccion!$I$3:$I$12,A24)","v":0},0]
[24,"Αὒρα","Aura","Aúra",null,{"$f":"COUNTIF(Traduccion!$I$3:$I$12,A25)","v":0},0]
[25,"Κἰρκη","Circe","Círke",null,{"$f":"COUNTIF(Traduccion!$I$3:$I$12,A26)","v":0},0]
[26,"Γανυμἠδης","Ganimedes","Ganumédes",null,{"$f":"COUNTIF(Traduccion!$I$3:$I$12,A27)","v":0},0]
[27,"Φοβος","Fobos","Fobos",null,{"$f":"COUNTIF(Traduccion!$I$3:$I$12,A28)","v":0},0]
[28,"Μοἲραι","Moiras","Moírai",null,{"$f":"COUNTIF(Traduccion!$I$3:$I$12,A29)","v":0},0]
[29,"Λητὠ","Leto","Letó",null,{"$f":"COUNTIF(Traduccion!$I$3:$I$12,A30)","v":0},0]
[30,"Ὺπνος","Hipnos","Upnos",null,{"$f":"COUNTIF(Traduccion!$I$3:$I$12,A31)","v":0},0]
[31,"Ἠλιος","Helios","Elios",null,{"$f":"COUNTIF(Traduccion!$I$3:$I$12,A32)","v":0},0]
[32,"Τὐχη","Tiqué","Túqe",null,{"$f":"COUNTIF(Traduccion!$I$3:$I$12,A33)","v":0},0]
[33,"Θἀνατος","Tánatos","Thánatos",null,{"$f":"COUNTIF(Traduccion!$I$3:$I$12,A34)","v":0},0]
[34,"Θησεὐς","Teseo","Theseús",null,{"$f":"COUNTIF(Traduccion!$I$3:$I$12,A35)","v":0},0]
[35,"Ἰρις","Iris","Iris",null,{"$f":"COUNTIF(Traduccion!$I$3:$I$12,A36)","v":0},0]
[36,"Μορφεὐς","Morfeo","Morfeús",null,{"$f":"COUNTIF(Traduccion!$I$3:$I$12,A37)","v":0},0]
[37,"Νἐμεσις","Némesis","Némesis",null,{"$f":"COUNTIF(Traduccion!$I$3:$I$12,A38)","v":0},0]
[38,"Νἰκη","Niké","Níke",null,{"$f":"COUNTIF(Traduccion!$I$3:$I$12,A39)","v":0},0]
[39,"Νὐξ","Nyx","Núx",null,{"$f":"COUNTIF(Traduccion!$I$3:$I$12,A40)","v":0},0]
[40,"Ἀριάδνη","Ariadna","Ariádne",null,{"$f":"COUNTIF(Traduccion!$I$3:$I$12,A41)","v":0},0]
[41,"Γεὀργιος","Jorge","Geórgios",null,{"$f":"COUNTIF(Traduccion!$I$3:$I$12,A42)","v":0},0]
[42,"Μαρἰα","María","María",null,{"$f":"COUNTIF(Traduccion!$I$3:$I$12,A43)","v":0},0]
[43,"Ιγνἀτιος","Ignacio","Ignátios",null,{"$f":"COUNTIF(Traduccion!$I$3:$I$12,A44)","v":1},1]
[44,"Ειρἠνη","Irene","Eiréne",null,{"$f":"COUNTIF(Traduccion!$I$3:$I$12,A45)","v":1},1]
[45,"Σαρπηδὠν","Sarpedón","Sarpedón",null,{"$f":"COUNTIF(Traduccion!$I$3:$I$12,A46)","v":1},1]
[46,"Φαἐθων","Faetón","Faéton",null,{"$f":"COUNTIF(Traduccion!$I$3:$I$12,A47)","v":0},0]
[47,"Μἰνως","Minos","Mínos",null,{"$f":"COUNTIF(Traduccion!$I$3:$I$12,A48)","v":0},0]
[48,"Ῥαδἀμανθυς","Radamante","Radámanthus",null,{"$f":"COUNTIF(Traduccion!$I$3:$I$12,A49)","v":0},0]
[49,"Ρῆσος","Reso","Résos",null,{"$f":"COUNTIF(Traduccion!$I$3:$I$12,A50)","v":0},0]
[50,"Κἀστωρ","Cástor","Kástor",null,{"$f":"COUNTIF(Traduccion!$I$3:$I$12,A51)","v":0},0]
[51,"Πολυδεὐκης","Pólux","Poludeúkes",null,{"$f":"COUNTIF(Traduccion!$I$3:$I$12,A52)","v":0},0]
[52,"Ὀδυσσεὺς","Odiseo","Odusseús",null,{"$f":"COUNTIF(Traduccion!$I$3:$I$12,A53)","v":0},0]
[53,"Ἐκτωρ","Héctor","Ektor",null,{"$f":"COUNTIF(Traduccion!$I$3:$I$12,A54)","v":0},0]
[54,"Αὶνεἰας","Eneas","Aíneías",null,{"$f":"COUNTIF(Traduccion!$I$3:$I$12,A55)","v":1},1]
[55,"Πἀτροκλος","Patroclo","Pátroclos",null,{"$f":"COUNTIF(Traduccion!$I$3:$I$12,A56)","v":0},0]
[56,"Ακρἰσιος","Acrisio","Akrísios",null,{"$f":"COUNTIF(Traduccion!$I$3:$I$12,A57)","v":0},0]
[57,"Ἀγαμἐμνων","Agamenón","Agamémnon",null,{"$f":"COUNTIF(Traduccion!$I$3:$I$12,A58)","v":0},0]
[58,"Ὰχιλῆος","Aquiles","Aqiléos",null,{"$f":"COUNTIF(Traduccion!$I$3:$I$12,A59)","v":0},0]
[59,"Αῖας","Áyax","Aías",null,{"$f":"COUNTIF(Traduccion!$I$3:$I$12,A60)","v":1},1]
[60,"Βελλεροφὀντης","Belerofonte","Bellerofón",null,{"$f":"COUNTIF(Traduccion!$I$3:$I$12,A61)","v":0},0]
[61,"Αισχὐλοσ","Esquilo","Aisqúlos",null,{"$f":"COUNTIF(Traduccion!$I$3:$I$12,A62)","v":1},{"$f":"IF(F62>1,100,IF(F62=1,1,0))","v":1}]
[62,"Αχαιὀς","Aqueo","Aqaios",null,{"$f":"COUNTIF(Traduccion!$I$3:$I$12,A63)","v":0},0]
[63,"Ευριπιδης","Eurípides","Euripides",null,{"$f":"COUNTIF(Traduccion!$I$3:$I$12,A64)","v":0},0]
[64,"Φιλἠμων","Filemón","Filémon",null,{"$f":"COUNTIF(Traduccion!$I$3:$I$12,A65)","v":0},0]
[65,"Μἐλητος","Meleto","Méletos",null,{"$f":"COUNTIF(Traduccion!$I$3:$I$12,A66)","v":1},1]
[66,"Σοφοκλἠς","Sófocles","Sofoklés",null,{"$f":"COUNTIF(Traduccion!$I$3:$I$12,A67)","v":0},0]
[67,"Ὴσιοδος","Hesíodo","Hsiodos",null,{"$f":"COUNTIF(Traduccion!$I$3:$I$12,A68)","v":0},0]
[68,"Ὶπποκρἀτης","Hipócrates","Ippokrátes",null,{"$f":"COUNTIF(Traduccion!$I$3:$I$12,A69)","v":0},0]
[69,"Ὰῖσωπος","Esopo","Aísopos",null,{"$f":"COUNTIF(Traduccion!$I$3:$I$12,A70)","v":0},0]
[70,"Ὰριστοτἐλης","Aristóteles","Aristotéles",null,{"$f":"COUNTIF(Traduccion!$I$3:$I$12,A71)","v":0},0]
[71,"Ὰριστοφἀνης","Aristófanes","Aristofánes",null,{"$f":"COUNTIF(Traduccion!$I$3:$I$12,A72)","v":0},0]
[72,"Πλἀτων","Platón","Pláton",null,{"$f":"COUNTIF(Traduccion!$I$3:$I$12,A73)","v":1},1]
[73,"Πυθαγὀρας","Pitágoras","Puthagóras",null,{"$f":"COUNTIF(Traduccion!$I$3:$I$12,A74)","v":0},0]
[74,"Στρἀβων","Estrabón","Strábon",null,{"$f":"COUNTIF(Traduccion!$I$3:$I$12,A75)","v":0},0]
[75,"Ὴρὀδοτος","Heródoto","Eródotos",null,{"$f":"COUNTIF(Traduccion!$I$3:$I$12,A76)","v":0},0]
[76,"Ὰπολλὀδωρος","Apolodoro","Apollódoros",null,{"$f":"COUNTIF(Traduccion!$I$3:$I$12,A77)","v":0},0]
[77,"Ζἠνων","Zenón","Zénon",null,{"$f":"COUNTIF(Traduccion!$I$3:$I$12,A78)","v":0},0]
[78,"Ξενοφὼν","Jenofonte","Xenofón",null,{"$f":"COUNTIF(Traduccion!$I$3:$I$12,A79)","v":0},0]
[79,"Διογἐνης","Diógenes","Diogéns",null,{"$f":"COUNTIF(Traduccion!$I$3:$I$12,A80)","v":0},0]
[80,"Σἰμων","Simón","Símon",null,{"$f":"COUNTIF(Traduccion!$I$3:$I$12,A81)","v":0},0]
[81,"Σωκρἀτης","Sócrates","Sokrátes",null,{"$f":"COUNTIF(Traduccion!$I$3:$I$12,A82)","v":0},0]
[82,"Ὸμηρος","Homero","Ómeros",null,{"$f":"COUNTIF(Traduccion!$I$3:$I$12,A83)","v":1},1]
[83,"Σαπφὠ","Safo","Sarfó",null,{"$f":"COUNTIF(Traduccion!$I$3:$I$12,A84)","v":0},0]
[84,"Πἰνδαρος","Píndaro","Píndaros",null,{"$f":"COUNTIF(Traduccion!$I$3:$I$12,A85)","v":0},0]
[85,"Σὀλων","Solón","Sólon",null,{"$f":"COUNTIF(Traduccion!$I$3:$I$12,A86)","v":0},0]
[86,"Θαλἢς","Tales","Thalés",null,{"$f":"COUNTIF(Traduccion!$I$3:$I$12,A87)","v":0},0]
[87,"Ζἠνων","Zenón","Zénon",null,{"$f":"COUNTIF(Traduccion!$I$3:$I$12,A88)","v":0},0]
[88,"Χεἰρων","Quirón","Qeíron",null,{"$f":"COUNTIF(Traduccion!$I$3:$I$12,A89)","v":0},0]

{"sheet":"MayusMinus","index":3,"n_rows":16,"n_cols":12,"rows_kept":16,"cut":false,"hidden":false,"merged":[[12,11,14,13],[10,10,11,13],[5,10,8,13]]}
[null,"Test de Mayúsculas y Minúsculas"]
["Número",null,"Mayúscula","Minúscula","Solución"]
[22,1,{"$f":"LOOKUP(A3,numeros,mayusculas)","v":"Χ"},null,{"$f":"LOOKUP(A3,numeros,minusculas)","v":"χ"},null,{"$f":"IF(E3=D3,1,0)","v":0},null,{"$f":"RANDBETWEEN(1,COUNTA(numeros))","v":15}]
[14,2,{"$f":"LOOKUP(A4,numeros,mayusculas)","v":"Ξ"},null,{"$f":"LOOKUP(A4,numeros,minusculas)","v":"ξ"},null,{"$f":"IF(E4=D4,1,0)","v":0},null,{"$f":"RANDBETWEEN(1,COUNTA(numeros))","v":20}]
[16,3,{"$f":"LOOKUP(A5,numeros,mayusculas)","v":"Π"},null,{"$f":"LOOKUP(A5,numeros,minusculas)","v":"π"},null,{"$f":"IF(E5=D5,1,0)","v":0},null,{"$f":"RANDBETWEEN(1,COUNTA(numeros))","v":17}]
[7,4,{"$f":"LOOKUP(A6,numeros,mayusculas)","v":"Η"},null,{"$f":"LOOKUP(A6,numeros,minusculas)","v":"η"},null,{"$f":"IF(E6=D6,1,0)","v":0},null,{"$f":"RANDBETWEEN(1,COUNTA(numeros))","v":10},null,"Rellena los huecos con la letra correspondiente (mayúscula o minúscula). Para hacerlo, puedes entre los caracteres de la lista o activar el teclado Griego Politónico (ver Portada o Menú)."]
[2,5,{"$f":"LOOKUP(A7,numeros,mayusculas)","v":"Β"},null,{"$f":"LOOKUP(A7,numeros,minusculas)","v":"β"},null,{"$f":"IF(E7=D7,1,0)","v":0},null,{"$f":"RANDBETWEEN(1,COUNTA(numeros))","v":11}]
[]
[]
[null,null,"Minúscula","Mayúscula","Solución"]
[20,1,{"$f":"LOOKUP(A11,numeros,minusculas)","v":"υ"},null,{"$f":"LOOKUP(A11,numeros,minusculas)","v":"υ"},null,{"$f":"IF(E11=D11,1,0)","v":0},null,{"$f":"RANDBETWEEN(1,COUNTA(numeros))","v":21},null,"Has sacado un:"]
[18,2,{"$f":"LOOKUP(A12,numeros,minusculas)","v":"σ"},null,{"$f":"LOOKUP(A12,numeros,minusculas)","v":"σ"},null,{"$f":"IF(E12=D12,1,0)","v":0},null,{"$f":"RANDBETWEEN(1,COUNTA(numeros))","v":4}]
[23,3,{"$f":"LOOKUP(A13,numeros,minusculas)","v":"ψ"},null,{"$f":"LOOKUP(A13,numeros,minusculas)","v":"ψ"},null,{"$f":"IF(E13=D13,1,0)","v":0},null,{"$f":"RANDBETWEEN(1,COUNTA(numeros))","v":3},null,null,{"$f":"LOOKUP(K14,notas,calificaciones)","v":"¡No tienes ni idea, el griego no es lo tuyo!"}]
[5,4,{"$f":"LOOKUP(A14,numeros,minusculas)","v":"ε"},null,{"$f":"LOOKUP(A14,numeros,minusculas)","v":"ε"},null,{"$f":"IF(E14=D14,1,0)","v":0},null,{"$f":"RANDBETWEEN(1,COUNTA(numeros))","v":2},null,{"$f":"SUM(G3:G15)","v":0}]
[12,5,{"$f":"LOOKUP(A15,numeros,minusculas)","v":"μ"},null,{"$f":"LOOKUP(A15,numeros,minusculas)","v":"μ"},null,{"$f":"IF(E15=D15,1,0)","v":0},null,{"$f":"RANDBETWEEN(1,COUNTA(numeros))","v":3}]
[null,null,null,{"$f":"COUNTA($D$3:$D$7)+COUNTA($D$11:D15)","v":0}]

{"sheet":"Nombres","index":4,"n_rows":14,"n_cols":12,"rows_kept":14,"cut":false,"hidden":false,"merged":[[5,10,8,13],[10,10,11,13],[12,11,14,13]]}
[null,"Test de Nombres de las Letras"]
["Número",null,"Letra","Nombre","Solución"]
[14,1,{"$f":"LOOKUP(A3,numeros,mayusculas)","v":"Ξ"},null,{"$f":"LOOKUP(A3,numeros,nombres)","v":"Xi"},null,{"$f":"IF(E3=D3,1,0)","v":0},null,{"$f":"RANDBETWEEN(1,COUNTA(numeros))","v":14}]
[11,2,{"$f":"LOOKUP(A4,numeros,minusculas)","v":"λ"},null,"Lamda",null,0,null,12]
[20,3,{"$f":"LOOKUP(A5,numeros,mayusculas)","v":"Υ"},null,"Ypsilon",null,0,null,1]
[16,4,{"$f":"LOOKUP(A6,numeros,minusculas)","v":"π"},null,"Pi",null,0,null,5,null,"Rellena los huecos con el nombre de la letra que corresponda. Ten cuidado, que las letras pueden ser tanto minúsculas como mayúsculas."]
[23,5,{"$f":"LOOKUP(A7,numeros,mayusculas)","v":"Ψ"},null,"Psi",null,0,null,20]
[12,6,{"$f":"LOOKUP(A8,numeros,minusculas)","v":"μ"},null,"Mi",null,0,null,24]
[8,7,{"$f":"LOOKUP(A9,numeros,mayusculas)","v":"Θ"},null,"Theta",null,0,null,1]
[7,8,{"$f":"LOOKUP(A10,numeros,minusculas)","v":"η"},null,"Eta",null,0,null,7]
[15,9,{"$f":"LOOKUP(A11,numeros,mayusculas)","v":"Ο"},null,"Omicron",null,0,null,1,null,"Has sacado un:"]
[17,10,{"$f":"LOOKUP(A12,numeros,minusculas)","v":"ρ"},null,"Ro",null,0,null,22]
[null,null,null,{"$f":"COUNTA($D$3:$D$12)","v":0},null,null,null,null,null,null,null,{"$f":"LOOKUP(K14,notas,calificaciones)","v":"¡No tienes ni idea, el griego no es lo tuyo!"}]
[null,null,null,null,null,null,null,null,null,null,{"$f":"SUM(G3:G12)","v":0}]

{"sheet":"Sonidos","index":5,"n_rows":14,"n_cols":12,"rows_kept":14,"cut":false,"hidden":false,"merged":[[5,10,8,13],[10,10,11,13],[12,11,14,13]]}
[null,"Test de Sonidos de las Letras"]
["Número",null,"Letra","Sonido","Solución"]
[16,1,{"$f":"LOOKUP(A3,numeros,mayusculas)","v":"Π"},null,{"$f":"LOOKUP(A3,numeros,sonidos)","v":"[p]"},null,{"$f":"IF(E3=D3,1,0)","v":0},null,{"$f":"RANDBETWEEN(1,COUNTA(numeros))","v":18}]
[11,2,{"$f":"LOOKUP(A4,numeros,minusculas)","v":"λ"},null,"[l]",null,0,null,2]
[1,3,{"$f":"LOOKUP(A5,numeros,mayusculas)","v":"Α"},null,"[a]",null,0,null,2]
[9,4,{"$f":"LOOKUP(A6,numeros,minusculas)","v":"ι"},null,"[i]",null,0,null,24,null,"Rellena los huecos con el sonido de la letra que corresponda. Ten cuidado, que las letras pueden ser tanto minúsculas como mayúsculas y los sonidos deben ir entre corchetes."]
[14,5,{"$f":"LOOKUP(A7,numeros,mayusculas)","v":"Ξ"},null,"[ks]",null,0,null,17]
[3,6,{"$f":"LOOKUP(A8,numeros,minusculas)","v":"γ"},null,"[g]",null,0,null,17]
[10,7,{"$f":"LOOKUP(A9,numeros,mayusculas)","v":"Κ"},null,"[k]",null,0,null,12]
[24,8,{"$f":"LOOKUP(A10,numeros,minusculas)","v":"ω"},null,"[o]",null,0,null,21]
[8,9,{"$f":"LOOKUP(A11,numeros,mayusculas)","v":"Θ"},null,"[th]",null,0,null,7,null,"Has sacado un:"]
[5,10,{"$f":"LOOKUP(A12,numeros,minusculas)","v":"ε"},null,"[e]",null,0,null,20]
[null,null,null,{"$f":"COUNTA($D$3:$D$12)","v":0},null,null,null,null,null,null,null,{"$f":"LOOKUP(K14,notas,calificaciones)","v":"¡No tienes ni idea, el griego no es lo tuyo!"}]
[null,null,null,null,null,null,null,null,null,null,{"$f":"SUM(G3:G12)","v":0}]

{"sheet":"Completa","index":6,"n_rows":14,"n_cols":16,"rows_kept":14,"cut":false,"hidden":false,"merged":[[5,14,8,17],[10,14,11,17],[12,15,14,17]]}
[null,"Test Completo: Mayúsculas, Minúsculas y Sonidos"]
["Número",null,"Letra","Mayúscula","Minúscula","Sonido","Mayúscula","Minúscula","Solución"]
[11,1,{"$f":"LOOKUP(A3,numeros,nombres)","v":"Lamda"},null,null,null,{"$f":"LOOKUP(A3,numeros,mayusculas)","v":"Λ"},{"$f":"LOOKUP(A3,numeros,minusculas)","v":"λ"},{"$f":"LOOKUP(A3,numeros,sonidos)","v":"[l]"},{"$f":"IF(G3=D3,0.25,0)","v":0},{"$f":"IF(H3=E3,0.25,0)","v":0},{"$f":"IF(I3=F3,0.5,0)","v":0},{"$f":"RANDBETWEEN(1,COUNTA(numeros))","v":17}]
[23,2,"Psi",null,null,null,"Ψ","ψ","[ps]",{"$f":"IF(G4=D4,0.25,0)","v":0},{"$f":"IF(H4=E4,0.25,0)","v":0},{"$f":"IF(I4=F4,0.5,0)","v":0},11]
[21,3,"Phi",null,null,null,"Φ","φ","[f]",0,0,0,10]
[1,4,"Alfa",null,null,null,"Α","α","[a]",0,0,0,12,null,"Rellena los huecos con la mayúscula, la minúscula y el sonido correspondiente al nombre de la letra dado. Cada respuesta correcta puntúa 0.25 en el caso de las letras y 0.5, en el del sonido."]
[3,5,"Gamma",null,null,null,"Γ","γ","[g]",0,0,0,13]
[10,6,"Kappa",null,null,null,"Κ","κ","[k]",0,0,0,19]
[17,7,"Ro",null,null,null,"Ρ","ρ","[r]",0,0,0,2]
[15,8,"Omicron",null,null,null,"Ο","ο","[o]",0,0,0,15]
[24,9,"Omega",null,null,null,"Ω","ω","[o]",0,0,0,5,null,"Has sacado un:"]
[20,10,"Ypsilon",null,null,null,"Υ","υ","[u]",0,0,0,19]
[null,null,null,{"$f":"COUNTA($D$3:$F$12)","v":0},null,null,null,null,null,null,null,null,null,null,null,{"$f":"LOOKUP(O14,notas,calificaciones)","v":"¡No tienes ni idea, el griego no es lo tuyo!"}]
[null,null,null,null,null,null,null,null,null,null,{"$f":"O14","v":0},null,null,null,{"$f":"SUM(J3:L12)","v":0}]

{"sheet":"Traduccion","index":7,"n_rows":14,"n_cols":12,"rows_kept":14,"cut":false,"hidden":false,"merged":[[5,10,8,13],[10,10,11,13],[12,11,14,13],[13,2,14,3]]}
[null,"Test de Traducción de Nombres"]
["Número",null,"Griego","Traducción","Español","Traducción Literal"]
[24,1,{"$f":"LOOKUP(A3,numgriego,griego)","v":"Αὒρα"},null,{"$f":"LOOKUP(A3,numgriego,espanol)","v":"Aura"},{"$f":"LOOKUP(A3,numgriego,tradlit)","v":"Aúra"},{"$f":"IF(OR(D3=E3,D3=F3),1,0)","v":0},null,{"$f":"RANDBETWEEN(1,Palabras!$H$3)","v":59}]
[5,2,"Εστἰα",null,"Hestia","Estía",{"$f":"IF(OR(D4=E4,D4=F4),1,0)","v":0},null,{"$f":"RANDBETWEEN(1,Palabras!$H$3)","v":82}]
[25,3,"Κἰρκη",null,"Circe","Círke",0,null,{"$f":"RANDBETWEEN(1,Palabras!$H$3)","v":65}]
[14,4,"Διὀνυσος",null,"Dionisio","Diónusos",0,null,{"$f":"RANDBETWEEN(1,Palabras!$H$3)","v":44},null,"Traduce los nombres de dioses, héroes y personalides destacadas de la Antigua Grecia. La traducción al español puede no ser exacta y por ello, tambien puedes traducir letra por letra. "]
[11,5,"Ἠφαιστος",null,"Hefesto","Hfaistos",0,null,{"$f":"RANDBETWEEN(1,Palabras!$H$3)","v":72}]
[46,6,"Φαἐθων",null,"Faetón","Faéton",0,null,{"$f":"RANDBETWEEN(1,Palabras!$H$3)","v":61}]
[16,7,"Ἐρως",null,"Eros","Eros",0,null,{"$f":"RANDBETWEEN(1,Palabras!$H$3)","v":43}]
[3,8,"Ποσειδὠνας",null,"Poseidón","Poseidónas",0,null,{"$f":"RANDBETWEEN(1,Palabras!$H$3)","v":16}]
[59,9,"Αῖας",null,"Áyax","Aías",0,null,{"$f":"RANDBETWEEN(1,Palabras!$H$3)","v":54},null,"Has sacado un:"]
[30,10,"Ὺπνος",null,"Hipnos","Upnos",0,null,{"$f":"RANDBETWEEN(1,Palabras!$H$3)","v":45}]
[null,null,null,{"$f":"COUNTA($D$3:$D$12)","v":0},null,null,null,null,null,null,null,{"$f":"LOOKUP(K14,notas,calificaciones)","v":"¡No tienes ni idea, el griego no es lo tuyo!"}]
[null,null,"¡No olvides las tildes, tanto si traduces directamente o letra a letra!",null,null,null,null,null,null,null,{"$f":"SUM(G3:G12)","v":0}]

{"sheet":"Estadisticas","index":8,"n_rows":141,"n_cols":5,"rows_kept":141,"cut":false,"hidden":false,"merged":[[22,4,22,12]]}
["Fecha","Test","Nota"]
[]
[]
[]
[]
[]
[]
[]
[]
[]
[]
[]
[]
[]
[]
[]
[]
[]
[]
[]
[]
[]
[null,null,null,null,"Cuando la hoja esté llena, copia y pega este Excel y borra las Estadísticas del nuevo para poder seguir."]
[]
[]
[]
[]
[]
[]
[]
[]
[]
[]
[]
[]
[]
[]
[]
[]
[]
[]
[]
[]
[]
[]
[]
[]
[]
[]
[]
[]
[]
[]
[]
[]
[]
[]
[]
[]
[]
[]
[]
[]
[]
[]
[]
[]
[]
[]
[]
[]
[]
[]
[]
[]
[]
[]
[]
[]
[]
[]
[]
[]
[]
[]
[]
[]
[]
[]
[]
[]
[]
[]
[]
[]
[]
[]
[]
[]
[]
[]
[]
[]
[]
[]
[]
[]
[]
[]
[]
[]
[]
[]
[]
[]
[]
[]
[]
[]
[]
[0,1,2]
[{"$f":"AVERAGE($C$2:$C$101)","v":{"$error":"#DIV/0!"}},1,{"$f":"OFFSET($A$1,$B122,A$121)","v":0},{"$f":"OFFSET($A$1,$B122,B$121)","v":0},{"$f":"OFFSET($A$1,$B122,C$121)","v":0}]
[{"$f":"AVERAGE($C$2:$C$101)","v":{"$error":"#DIV/0!"}},{"$f":"B122+1","v":2},0,0,0]
[{"$error":"#DIV/0!"},3,0,0,0]
[{"$error":"#DIV/0!"},4,0,0,0]
[{"$error":"#DIV/0!"},5,0,0,0]
[{"$error":"#DIV/0!"},6,0,0,0]
[{"$error":"#DIV/0!"},7,0,0,0]
[{"$error":"#DIV/0!"},8,0,0,0]
[{"$error":"#DIV/0!"},9,0,0,0]
[{"$error":"#DIV/0!"},10,0,0,0]
[{"$error":"#DIV/0!"},11,0,0,0]
[{"$error":"#DIV/0!"},12,0,0,0]
[{"$error":"#DIV/0!"},13,0,0,0]
[{"$error":"#DIV/0!"},14,0,0,0]
[{"$error":"#DIV/0!"},15,0,0,0]
[{"$error":"#DIV/0!"},16,0,0,0]
[{"$error":"#DIV/0!"},17,0,0,0]
[{"$error":"#DIV/0!"},18,0,0,0]
[{"$error":"#DIV/0!"},19,0,0,0]
[{"$error":"#DIV/0!"},20,0,0,0]

{"sheet":"Configuracion","index":9,"n_rows":8,"n_cols":6,"rows_kept":8,"cut":false,"hidden":true,"merged":[]}
["Notas","Calificaciones"]
[0,"¡No tienes ni idea, el griego no es lo tuyo!",null,null,null,"http://images.all-free-download.com/images/graphiclarge/home_icon_55463.jpg"]
[0.5,"Suspenso"]
[5,"Suficiente"]
[6,"Bien"]
[7,"Notable"]
[9,"Sobresaliente"]
[10,"Que friki, ¡ni Aristóteles te gana!"]